[Event "Titled Tuesday Blitz May 24 Early 2022"]
[White "Lauridsen, Jesper Morch"]
[Black "Shevtchenko, Olesya"]
[WhiteFideId "1401890"]
[BlackFideId "24131890"]
[WhiteElo "2229"]
[BlackElo "2003"]
[Result "1-0"]
[Round "11"]
[TimeControl "180+1"]
[Date "2022.05.25"]
[WhiteClock "0:00:32"]
[BlackClock "0:00:17"]

1. e4 {[%clk 0:03:00]}  e6 {[%clk 0:02:59]} 2. d4 {[%clk 0:02:58]}  d5 {[%clk 0:02:59]} 3. e5 {[%clk 0:02:58]}  c5 {[%clk 0:02:59]} 4. c3 {[%clk 0:02:57]}  Nc6 {[%clk 0:02:58]} 5. Nf3 {[%clk 0:02:57]}  Bd7 {[%clk 0:02:58]} 6. Be2 {[%clk 0:02:56]}  Qb6 {[%clk 0:02:53]} 7. dxc5 {[%clk 0:02:42]}  Bxc5 {[%clk 0:02:51]} 8. O-O {[%clk 0:02:42]}  a5 {[%clk 0:02:45]} 9. Nbd2 {[%clk 0:02:34]}  f6 {[%clk 0:02:42]} 10. exf6 {[%clk 0:02:30]}  Nxf6 {[%clk 0:02:43]} 11. Nb3 {[%clk 0:02:30]}  Be7 {[%clk 0:02:31]} 12. Be3 {[%clk 0:02:25]}  Qc7 {[%clk 0:02:28]} 13. c4 {[%clk 0:02:15]}  O-O {[%clk 0:02:14]} 14. cxd5 {[%clk 0:02:11]}  Nxd5 {[%clk 0:02:10]} 15. Bc5 {[%clk 0:02:06]}  Bxc5 {[%clk 0:02:01]} 16. Nxc5 {[%clk 0:02:05]}  b6 {[%clk 0:01:53]} 17. Nxd7 {[%clk 0:02:04]}  Qxd7 {[%clk 0:01:54]} 18. Bb5 {[%clk 0:02:03]}  Qb7 {[%clk 0:01:47]} 19. Rc1 {[%clk 0:01:56]}  Rac8 {[%clk 0:01:43]} 20. Re1 {[%clk 0:01:46]}  Nf4 {[%clk 0:01:26]} 21. Qd6 {[%clk 0:01:32]}  Nb4 {[%clk 0:01:17]} 22. Rxc8 {[%clk 0:01:23]}  Qxc8 {[%clk 0:01:11]} 23. Bd7 {[%clk 0:01:23]}  Qc2 {[%clk 0:00:44]} 24. Bxe6+ {[%clk 0:01:20]}  Nxe6 {[%clk 0:00:43]} 25. Qxe6+ {[%clk 0:01:19]}  Kh8 {[%clk 0:00:43]} 26. Qxb6 {[%clk 0:00:52]}  Nd3 {[%clk 0:00:35]} 27. Rf1 {[%clk 0:00:40]}  a4 {[%clk 0:00:29]} 28. b3 {[%clk 0:00:38]}  a3 {[%clk 0:00:25]} 29. Ng5 {[%clk 0:00:36]}  h6 {[%clk 0:00:19]} 30. Ne6 {[%clk 0:00:34]}  Re8 {[%clk 0:00:19]} 31. Nd4 {[%clk 0:00:33]}  Qxf2+ {[%clk 0:00:17]} 32. Rxf2 {[%clk 0:00:32]} 1-0


[Site "https://www.chess.com"]

[Event "Titled Tuesday Blitz May 24 Early 2022"]
[White "Le, Tuan Minh"]
[Black "Bharath Subramaniyam H"]
[WhiteFideId "12401153"]
[BlackFideId "46634827"]
[WhiteElo "2450"]
[BlackElo "2242"]
[Result "1/2-1/2"]
[Round "11"]
[TimeControl "180+1"]
[Date "2022.05.24"]
[WhiteClock "0:00:06"]
[BlackClock "0:00:10"]

1. d4 {[%clk 0:03:00]}  Nf6 {[%clk 0:02:59]} 2. Nf3 {[%clk 0:03:01]}  e6 {[%clk 0:02:58]} 3. Bf4 {[%clk 0:03:01]}  c5 {[%clk 0:02:56]} 4. c3 {[%clk 0:03:01]}  d5 {[%clk 0:02:56]} 5. e3 {[%clk 0:03:01]}  Nc6 {[%clk 0:02:57]} 6. Nbd2 {[%clk 0:03:02]}  Bd6 {[%clk 0:02:57]} 7. Bg3 {[%clk 0:03:02]}  O-O {[%clk 0:02:53]} 8. Bb5 {[%clk 0:03:02]}  Qe7 {[%clk 0:02:43]} 9. O-O {[%clk 0:02:49]}  Bd7 {[%clk 0:02:36]} 10. Qa4 {[%clk 0:02:40]}  a6 {[%clk 0:02:28]} 11. Bxc6 {[%clk 0:02:38]}  Bxc6 {[%clk 0:02:26]} 12. Qa3 {[%clk 0:02:39]}  b6 {[%clk 0:02:20]} 13. Bxd6 {[%clk 0:02:24]}  Qxd6 {[%clk 0:02:20]} 14. c4 {[%clk 0:02:25]}  dxc4 {[%clk 0:02:12]} 15. Nxc4 {[%clk 0:02:16]}  Qc7 {[%clk 0:02:07]} 16. dxc5 {[%clk 0:02:08]}  Bxf3 {[%clk 0:01:51]} 17. gxf3 {[%clk 0:02:09]}  bxc5 {[%clk 0:01:51]} 18. Rfd1 {[%clk 0:02:06]}  Nd5 {[%clk 0:01:48]} 19. Rac1 {[%clk 0:02:04]}  Qe7 {[%clk 0:01:46]} 20. Nd2 {[%clk 0:01:56]}  Nb4 {[%clk 0:01:03]} 21. Ne4 {[%clk 0:01:56]}  Rfd8 {[%clk 0:00:59]} 22. Rxd8+ {[%clk 0:01:25]}  Rxd8 {[%clk 0:01:00]} 23. Rxc5 {[%clk 0:01:25]}  f5 {[%clk 0:00:42]} 24. Qxb4 {[%clk 0:01:18]}  fxe4 {[%clk 0:00:42]} 25. fxe4 {[%clk 0:01:17]}  Qf6 {[%clk 0:00:40]} 26. Rc1 {[%clk 0:00:17]}  Qf3 {[%clk 0:00:36]} 27. e5 {[%clk 0:00:15]}  Rf8 {[%clk 0:00:20]} 28. Qh4 {[%clk 0:00:15]}  Qe2 {[%clk 0:00:15]} 29. b4 {[%clk 0:00:10]}  Qxa2 {[%clk 0:00:14]} 30. Qg3 {[%clk 0:00:11]}  h6 {[%clk 0:00:09]} 31. h4 {[%clk 0:00:10]}  Rf7 {[%clk 0:00:06]} 32. h5 {[%clk 0:00:09]}  Qb2 {[%clk 0:00:05]} 33. Rc8+ {[%clk 0:00:09]}  Rf8 {[%clk 0:00:05]} 34. Rc7 {[%clk 0:00:07]}  Rf7 {[%clk 0:00:05]} 35. Rxf7 {[%clk 0:00:08]}  Kxf7 {[%clk 0:00:05]} 36. Qg6+ {[%clk 0:00:08]}  Kf8 {[%clk 0:00:05]} 37. Qxe6 {[%clk 0:00:08]}  Qb1+ {[%clk 0:00:05]} 38. Kh2 {[%clk 0:00:07]}  Qxb4 {[%clk 0:00:05]} 39. Kg3 {[%clk 0:00:07]}  a5 {[%clk 0:00:04]} 40. Qd7 {[%clk 0:00:05]}  a4 {[%clk 0:00:01]} 41. e6 {[%clk 0:00:05]}  Qe7 {[%clk 0:00:02]} 42. Qxa4 {[%clk 0:00:05]}  Qxe6 {[%clk 0:00:02]} 43. Qf4+ {[%clk 0:00:05]}  Kg8 {[%clk 0:00:03]} 44. e4 {[%clk 0:00:05]}  Qb3+ {[%clk 0:00:02]} 45. f3 {[%clk 0:00:05]}  Qd1 {[%clk 0:00:02]} 46. Qf5 {[%clk 0:00:05]}  Qg1+ {[%clk 0:00:02]} 47. Kf4 {[%clk 0:00:05]}  Qh2+ {[%clk 0:00:03]} 48. Ke3 {[%clk 0:00:06]}  Qg1+ {[%clk 0:00:04]} 49. Ke2 {[%clk 0:00:06]}  Qg2+ {[%clk 0:00:04]} 50. Kd3 {[%clk 0:00:06]}  Qf1+ {[%clk 0:00:04]} 51. Kd4 {[%clk 0:00:07]}  Qa1+ {[%clk 0:00:04]} 52. Kd5 {[%clk 0:00:07]}  Qa5+ {[%clk 0:00:05]} 53. Kd6 {[%clk 0:00:08]}  Qb6+ {[%clk 0:00:05]} 54. Ke5 {[%clk 0:00:08]}  Qc7+ {[%clk 0:00:05]} 55. Kd4 {[%clk 0:00:09]}  Qb6+ {[%clk 0:00:04]} 56. Qc5 {[%clk 0:00:09]}  Qb2+ {[%clk 0:00:04]} 57. Ke3 {[%clk 0:00:09]}  Qb3+ {[%clk 0:00:04]} 58. Kf4 {[%clk 0:00:09]}  Qf7+ {[%clk 0:00:03]} 59. Kg3 {[%clk 0:00:10]}  Kh8 {[%clk 0:00:01]} 60. Qc8+ {[%clk 0:00:10]}  Kh7 {[%clk 0:00:02]} 61. Qc5 {[%clk 0:00:09]}  Kh8 {[%clk 0:00:02]} 62. f4 {[%clk 0:00:10]}  Qb3+ {[%clk 0:00:01]} 63. Kg4 {[%clk 0:00:11]}  Qe6+ {[%clk 0:00:02]} 64. Qf5 {[%clk 0:00:11]}  Qc4 {[%clk 0:00:03]} 65. Qg6 {[%clk 0:00:06]}  Qe2+ {[%clk 0:00:02]} 66. Kf5 {[%clk 0:00:07]}  Qb5+ {[%clk 0:00:03]} 67. e5 {[%clk 0:00:07]}  Qd3+ {[%clk 0:00:03]} 68. Ke6 {[%clk 0:00:07]}  Qc4+ {[%clk 0:00:04]} 69. Kd7 {[%clk 0:00:06]}  Qxf4 {[%clk 0:00:04]} 70. e6 {[%clk 0:00:07]}  Qd4+ {[%clk 0:00:05]} 71. Ke8 {[%clk 0:00:07]}  Qa4+ {[%clk 0:00:04]} 72. Kf8 {[%clk 0:00:07]}  Qa8+ {[%clk 0:00:04]} 73. Qe8 {[%clk 0:00:07]}  Qf3+ {[%clk 0:00:05]} 74. Ke7+ {[%clk 0:00:07]}  Kh7 {[%clk 0:00:05]} 75. Qg6+ {[%clk 0:00:08]}  Kh8 {[%clk 0:00:06]} 76. Qe8+ {[%clk 0:00:08]}  Kh7 {[%clk 0:00:06]} 77. Qf7 {[%clk 0:00:09]}  Qa3+ {[%clk 0:00:05]} 78. Ke8 {[%clk 0:00:09]}  Qa8+ {[%clk 0:00:06]} 79. Kd7 {[%clk 0:00:09]}  Qb7+ {[%clk 0:00:06]} 80. Kd6 {[%clk 0:00:09]}  Qb6+ {[%clk 0:00:07]} 81. Ke5 {[%clk 0:00:10]}  Qc5+ {[%clk 0:00:07]} 82. Ke4 {[%clk 0:00:10]}  Qc4+ {[%clk 0:00:07]} 83. Kf3 {[%clk 0:00:11]}  Qd3+ {[%clk 0:00:08]} 84. Kf4 {[%clk 0:00:11]}  Qd4+ {[%clk 0:00:08]} 85. Kf5 {[%clk 0:00:11]}  Qd5+ {[%clk 0:00:08]} 86. Kg4 {[%clk 0:00:11]}  Qe4+ {[%clk 0:00:08]} 87. Kg3 {[%clk 0:00:12]}  Qe3+ {[%clk 0:00:08]} 88. Kh2 {[%clk 0:00:12]}  Qe2+ {[%clk 0:00:08]} 89. Kh3 {[%clk 0:00:13]}  Qe3+ {[%clk 0:00:09]} 90. Kg4 {[%clk 0:00:13]}  Qe4+ {[%clk 0:00:09]} 91. Kg3 {[%clk 0:00:09]}  Qe3+ {[%clk 0:00:09]} 92. Kg2 {[%clk 0:00:09]}  Qe2+ {[%clk 0:00:10]} 93. Kg3 {[%clk 0:00:06]}  Qe3+ {[%clk 0:00:10]} 1/2-1/2


[Site "https://www.chess.com"]

[Event "Titled Tuesday Blitz May 24 Early 2022"]
[White "Liyanage, Ranindu Dilshan"]
[Black "Ambartsumova, Karina"]
[WhiteFideId "9915834"]
[BlackFideId "4166299"]
[WhiteElo "1858"]
[BlackElo "2262"]
[Result "0-1"]
[Round "11"]
[TimeControl "180+1"]
[Date "2022.05.25"]
[WhiteClock "0:00:05"]
[BlackClock "0:00:06"]

1. e4 {[%clk 0:03:00]}  e5 {[%clk 0:02:59]} 2. Nf3 {[%clk 0:03:00]}  Nc6 {[%clk 0:02:59]} 3. Bb5 {[%clk 0:02:59]}  a6 {[%clk 0:02:59]} 4. Ba4 {[%clk 0:02:59]}  Nf6 {[%clk 0:02:59]} 5. O-O {[%clk 0:03:00]}  Be7 {[%clk 0:02:59]} 6. d3 {[%clk 0:02:57]}  d6 {[%clk 0:02:57]} 7. c3 {[%clk 0:02:55]}  O-O {[%clk 0:02:57]} 8. h3 {[%clk 0:02:55]}  b5 {[%clk 0:02:54]} 9. Bb3 {[%clk 0:02:54]}  h6 {[%clk 0:02:52]} 10. Re1 {[%clk 0:02:54]}  Na5 {[%clk 0:02:51]} 11. Bc2 {[%clk 0:02:54]}  c5 {[%clk 0:02:52]} 12. d4 {[%clk 0:02:54]}  cxd4 {[%clk 0:02:46]} 13. cxd4 {[%clk 0:02:54]}  Nc6 {[%clk 0:02:37]} 14. d5 {[%clk 0:02:47]}  Nb4 {[%clk 0:02:37]} 15. Bb3 {[%clk 0:02:47]}  a5 {[%clk 0:02:35]} 16. a3 {[%clk 0:02:38]}  Na6 {[%clk 0:02:30]} 17. Nc3 {[%clk 0:02:34]}  Bd7 {[%clk 0:02:24]} 18. Be3 {[%clk 0:02:22]}  b4 {[%clk 0:02:21]} 19. axb4 {[%clk 0:02:23]}  axb4 {[%clk 0:02:21]} 20. Na4 {[%clk 0:02:21]}  Bb5 {[%clk 0:01:47]} 21. Nd2 {[%clk 0:02:04]}  Nc5 {[%clk 0:01:34]} 22. Nxc5 {[%clk 0:01:42]}  Rxa1 {[%clk 0:01:34]} 23. Qxa1 {[%clk 0:01:41]}  dxc5 {[%clk 0:01:34]} 24. Rc1 {[%clk 0:01:36]}  Qb6 {[%clk 0:01:27]} 25. Bc4 {[%clk 0:01:21]}  Rc8 {[%clk 0:01:14]} 26. f3 {[%clk 0:01:17]}  Ne8 {[%clk 0:01:07]} 27. b3 {[%clk 0:01:11]}  Nd6 {[%clk 0:01:06]} 28. Qxe5 {[%clk 0:00:58]}  Bf6 {[%clk 0:01:00]} 29. Qg3 {[%clk 0:00:58]}  Bd4 {[%clk 0:00:36]} 30. Qf2 {[%clk 0:00:53]}  Bxc4 {[%clk 0:00:29]} 31. Nxc4 {[%clk 0:00:51]}  Nxc4 {[%clk 0:00:20]} 32. Rxc4 {[%clk 0:00:51]}  Bxe3 {[%clk 0:00:16]} 33. Qxe3 {[%clk 0:00:52]}  f6 {[%clk 0:00:17]} 34. f4 {[%clk 0:00:50]}  Qd6 {[%clk 0:00:17]} 35. Rc2 {[%clk 0:00:39]}  Kh7 {[%clk 0:00:16]} 36. Qd3 {[%clk 0:00:37]}  Kg8 {[%clk 0:00:16]} 37. Re2 {[%clk 0:00:36]}  Re8 {[%clk 0:00:16]} 38. g3 {[%clk 0:00:34]}  h5 {[%clk 0:00:16]} 39. h4 {[%clk 0:00:32]}  Kh8 {[%clk 0:00:14]} 40. Qf3 {[%clk 0:00:23]}  g6 {[%clk 0:00:13]} 41. Qd3 {[%clk 0:00:23]}  Kg7 {[%clk 0:00:13]} 42. Qb5 {[%clk 0:00:23]}  Re7 {[%clk 0:00:11]} 43. Qc4 {[%clk 0:00:22]}  Re8 {[%clk 0:00:10]} 44. Rc2 {[%clk 0:00:21]}  Rc8 {[%clk 0:00:10]} 45. Ra2 {[%clk 0:00:21]}  Rc7 {[%clk 0:00:09]} 46. Qe2 {[%clk 0:00:19]}  Re7 {[%clk 0:00:08]} 47. Ra6 {[%clk 0:00:19]}  Qxd5 {[%clk 0:00:07]} 48. exd5 {[%clk 0:00:03]}  Rxe2 {[%clk 0:00:08]} 49. Rc6 {[%clk 0:00:03]}  Rc2 {[%clk 0:00:06]} 50. Rc7+ {[%clk 0:00:02]}  Kf8 {[%clk 0:00:06]} 51. Kf1 {[%clk 0:00:02]}  Ke8 {[%clk 0:00:05]} 52. Ke1 {[%clk 0:00:02]}  Rc3 {[%clk 0:00:06]} 53. Rc6 {[%clk 0:00:02]}  Ke7 {[%clk 0:00:05]} 54. Kd2 {[%clk 0:00:02]}  Rxb3 {[%clk 0:00:05]} 55. Rxc5 {[%clk 0:00:02]}  Rxg3 {[%clk 0:00:04]} 56. Rb5 {[%clk 0:00:03]}  Kd6 {[%clk 0:00:04]} 57. Rxb4 {[%clk 0:00:02]}  Kxd5 {[%clk 0:00:05]} 58. Rb6 {[%clk 0:00:02]}  f5 {[%clk 0:00:05]} 59. Ke2 {[%clk 0:00:02]}  Ke4 {[%clk 0:00:05]} 60. Rb4+ {[%clk 0:00:02]}  Kd5 {[%clk 0:00:05]} 61. Kf2 {[%clk 0:00:03]}  Rg4 {[%clk 0:00:05]} 62. Kf3 {[%clk 0:00:04]}  Ke6 {[%clk 0:00:04]} 63. Rb5 {[%clk 0:00:05]}  Kf7 {[%clk 0:00:05]} 64. Rb6 {[%clk 0:00:05]}  Kg7 {[%clk 0:00:05]} 65. Rb7+ {[%clk 0:00:05]}  Kh6 {[%clk 0:00:05]} 66. Rb6 {[%clk 0:00:06]}  Rxh4 {[%clk 0:00:06]} 67. Rb7 {[%clk 0:00:05]}  Rg4 {[%clk 0:00:06]} 68. Rc7 {[%clk 0:00:05]}  h4 {[%clk 0:00:05]} 69. Rc8 {[%clk 0:00:05]}  Rg3+ {[%clk 0:00:05]} 70. Kf2 {[%clk 0:00:05]}  Kh5 {[%clk 0:00:05]} 71. Rg8 {[%clk 0:00:05]}  Kg4 {[%clk 0:00:05]} 72. Rxg6+ {[%clk 0:00:05]}  Kxf4 {[%clk 0:00:05]} 73. Rh6 {[%clk 0:00:06]}  Rg4 {[%clk 0:00:05]} 74. Rh5 {[%clk 0:00:06]}  Ke5 {[%clk 0:00:04]} 75. Rh8 {[%clk 0:00:06]}  Ra4 {[%clk 0:00:04]} 76. Rh5 {[%clk 0:00:06]}  Ra2+ {[%clk 0:00:04]} 77. Kf3 {[%clk 0:00:06]}  Ra3+ {[%clk 0:00:05]} 78. Kf2 {[%clk 0:00:06]}  h3 {[%clk 0:00:05]} 79. Rh8 {[%clk 0:00:05]}  Kf4 {[%clk 0:00:05]} 80. Kg1 {[%clk 0:00:05]}  Ra1+ {[%clk 0:00:05]} 81. Kf2 {[%clk 0:00:05]}  Ra2+ {[%clk 0:00:05]} 82. Kf1 {[%clk 0:00:06]}  h2 {[%clk 0:00:05]} 83. Rh4+ {[%clk 0:00:05]}  Kg3 {[%clk 0:00:05]} 84. Rh5 {[%clk 0:00:05]}  h1=Q+ {[%clk 0:00:05]} 85. Rxh1 {[%clk 0:00:04]}  Ra1+ {[%clk 0:00:06]} 86. Ke2 {[%clk 0:00:05]}  Rxh1 {[%clk 0:00:06]} 0-1


[Site "https://www.chess.com"]

[Event "Titled Tuesday Blitz May 24 Early 2022"]
[White "Ljukin, Sergei"]
[Black "Namitbir Singh Walia"]
[WhiteFideId "14102200"]
[BlackFideId "35071068"]
[WhiteElo "2312"]
[BlackElo "1565"]
[Result "1-0"]
[Round "11"]
[TimeControl "180+1"]
[Date "2022.05.25"]
[WhiteClock "0:00:04"]
[BlackClock "0:00:04"]

1. e4 {[%clk 0:02:47]}  c5 {[%clk 0:02:59]} 2. Nf3 {[%clk 0:02:46]}  Nc6 {[%clk 0:02:59]} 3. d4 {[%clk 0:02:46]}  cxd4 {[%clk 0:03:00]} 4. Nxd4 {[%clk 0:02:47]}  g6 {[%clk 0:03:01]} 5. c4 {[%clk 0:02:46]}  Nf6 {[%clk 0:03:01]} 6. Nc3 {[%clk 0:02:46]}  Nxd4 {[%clk 0:03:01]} 7. Qxd4 {[%clk 0:02:45]}  d6 {[%clk 0:03:01]} 8. Be3 {[%clk 0:02:45]}  Bg7 {[%clk 0:03:02]} 9. Be2 {[%clk 0:02:42]}  O-O {[%clk 0:03:02]} 10. Qd2 {[%clk 0:02:43]}  Qa5 {[%clk 0:03:02]} 11. f3 {[%clk 0:02:41]}  Be6 {[%clk 0:03:02]} 12. Nd5 {[%clk 0:02:41]}  Qxd2+ {[%clk 0:02:55]} 13. Kxd2 {[%clk 0:02:41]}  Nxd5 {[%clk 0:02:52]} 14. cxd5 {[%clk 0:02:41]}  Bd7 {[%clk 0:02:52]} 15. Rac1 {[%clk 0:02:38]}  Rfc8 {[%clk 0:02:49]} 16. b3 {[%clk 0:02:09]}  a6 {[%clk 0:02:47]} 17. Rxc8+ {[%clk 0:02:08]}  Rxc8 {[%clk 0:02:48]} 18. Rc1 {[%clk 0:02:08]}  Rxc1 {[%clk 0:02:46]} 19. Kxc1 {[%clk 0:02:08]}  f5 {[%clk 0:02:46]} 20. Kc2 {[%clk 0:01:58]}  Kf7 {[%clk 0:02:44]} 21. a4 {[%clk 0:01:53]}  Be5 {[%clk 0:02:43]} 22. h3 {[%clk 0:01:46]}  Bf6 {[%clk 0:02:10]} 23. Kd3 {[%clk 0:01:30]}  g5 {[%clk 0:02:07]} 24. Kc4 {[%clk 0:01:27]}  h5 {[%clk 0:01:35]} 25. Kb4 {[%clk 0:01:20]}  f4 {[%clk 0:01:13]} 26. Bf2 {[%clk 0:01:12]}  e6 {[%clk 0:01:13]} 27. Ka5 {[%clk 0:01:05]}  Bd8+ {[%clk 0:01:11]} 28. Bb6 {[%clk 0:01:01]}  Bf6 {[%clk 0:01:10]} 29. Bc7 {[%clk 0:00:59]}  exd5 {[%clk 0:00:59]} 30. exd5 {[%clk 0:00:58]}  Ke7 {[%clk 0:01:00]} 31. Kb6 {[%clk 0:00:51]}  Bc8 {[%clk 0:01:00]} 32. Bd3 {[%clk 0:00:46]}  Bd4+ {[%clk 0:00:52]} 33. Ka5 {[%clk 0:00:45]}  g4 {[%clk 0:00:40]} 34. hxg4 {[%clk 0:00:44]}  hxg4 {[%clk 0:00:41]} 35. Kb4 {[%clk 0:00:25]}  g3 {[%clk 0:00:23]} 36. Kc4 {[%clk 0:00:22]}  Be3 {[%clk 0:00:22]} 37. b4 {[%clk 0:00:17]}  Bh3 {[%clk 0:00:19]} 38. Bf1 {[%clk 0:00:16]}  Bd7 {[%clk 0:00:17]} 39. b5 {[%clk 0:00:15]}  axb5+ {[%clk 0:00:17]} 40. axb5 {[%clk 0:00:14]}  Be8 {[%clk 0:00:17]} 41. Ba5 {[%clk 0:00:13]}  Bg6 {[%clk 0:00:17]} 42. Bd3 {[%clk 0:00:12]}  Bh5 {[%clk 0:00:17]} 43. Be4 {[%clk 0:00:11]}  Bf7 {[%clk 0:00:15]} 44. Bc3 {[%clk 0:00:11]}  Be8 {[%clk 0:00:14]} 45. Bg7 {[%clk 0:00:10]}  Bd7 {[%clk 0:00:14]} 46. Bd3 {[%clk 0:00:10]}  Bc8 {[%clk 0:00:13]} 47. Bh6 {[%clk 0:00:10]}  Bd7 {[%clk 0:00:13]} 48. Be2 {[%clk 0:00:09]}  Kf7 {[%clk 0:00:12]} 49. Bg5 {[%clk 0:00:07]}  Bf5 {[%clk 0:00:11]} 50. Bd3 {[%clk 0:00:07]}  Bd7 {[%clk 0:00:11]} 51. Be2 {[%clk 0:00:07]}  Bc8 {[%clk 0:00:10]} 52. Kd3 {[%clk 0:00:06]}  Kg6 {[%clk 0:00:07]} 53. Be7 {[%clk 0:00:05]}  Bc5 {[%clk 0:00:07]} 54. Ke4 {[%clk 0:00:06]}  Be3 {[%clk 0:00:04]} 55. Bxd6 {[%clk 0:00:05]}  Bf5+ {[%clk 0:00:05]} 56. Ke5 {[%clk 0:00:04]}  Bc2 {[%clk 0:00:05]} 57. Bc7 {[%clk 0:00:04]}  Bb3 {[%clk 0:00:04]} 58. d6 {[%clk 0:00:04]}  Kf7 {[%clk 0:00:04]} 59. d7 {[%clk 0:00:04]} 1-0


[Site "https://www.chess.com"]

[Event "Titled Tuesday Blitz May 24 Early 2022"]
[White "Lutz, Igor Oscar"]
[Black "Sankalan Shah"]
[WhiteFideId "2110806"]
[BlackFideId "25600362"]
[WhiteElo "1736"]
[BlackElo "1648"]
[Result "0-1"]
[Round "11"]
[TimeControl "180+1"]
[Date "2022.05.25"]
[WhiteClock "0:00:17"]
[BlackClock "0:00:10"]

1. d4 {[%clk 0:03:00]}  Nf6 {[%clk 0:02:58]} 2. c4 {[%clk 0:03:01]}  g6 {[%clk 0:02:58]} 3. Nc3 {[%clk 0:03:00]}  Bg7 {[%clk 0:02:58]} 4. e4 {[%clk 0:03:01]}  d6 {[%clk 0:02:59]} 5. Nf3 {[%clk 0:03:02]}  O-O {[%clk 0:02:59]} 6. Be2 {[%clk 0:03:02]}  e5 {[%clk 0:02:58]} 7. Be3 {[%clk 0:03:03]}  Nc6 {[%clk 0:02:58]} 8. d5 {[%clk 0:03:03]}  Ne7 {[%clk 0:02:58]} 9. Nd2 {[%clk 0:03:04]}  Ne8 {[%clk 0:02:55]} 10. b4 {[%clk 0:03:04]}  f5 {[%clk 0:02:54]} 11. f3 {[%clk 0:03:05]}  f4 {[%clk 0:02:53]} 12. Bf2 {[%clk 0:03:05]}  Nf6 {[%clk 0:02:54]} 13. c5 {[%clk 0:03:06]}  g5 {[%clk 0:02:51]} 14. Nc4 {[%clk 0:03:06]}  Ng6 {[%clk 0:02:25]} 15. cxd6 {[%clk 0:03:03]}  cxd6 {[%clk 0:02:25]} 16. Nb5 {[%clk 0:03:03]}  Ne8 {[%clk 0:02:24]} 17. Bxa7 {[%clk 0:03:03]}  g4 {[%clk 0:02:18]} 18. Bf2 {[%clk 0:02:56]}  h5 {[%clk 0:02:13]} 19. Nb6 {[%clk 0:02:49]}  Rb8 {[%clk 0:02:11]} 20. Rc1 {[%clk 0:02:38]}  g3 {[%clk 0:02:07]} 21. hxg3 {[%clk 0:02:31]}  fxg3 {[%clk 0:02:07]} 22. Be3 {[%clk 0:02:31]}  Nf4 {[%clk 0:02:02]} 23. Bf1 {[%clk 0:02:27]}  Bh3 {[%clk 0:01:50]} 24. gxh3 {[%clk 0:02:10]}  g2 {[%clk 0:01:50]} 25. Rg1 {[%clk 0:02:00]}  gxf1=Q+ {[%clk 0:01:49]} 26. Kxf1 {[%clk 0:01:56]}  Nxh3 {[%clk 0:01:38]} 27. Rg3 {[%clk 0:01:29]}  Qh4 {[%clk 0:01:28]} 28. Kg2 {[%clk 0:01:09]}  Nf4+ {[%clk 0:01:27]} 29. Bxf4 {[%clk 0:01:09]}  exf4 {[%clk 0:01:26]} 30. Rh3 {[%clk 0:01:09]}  Qg5+ {[%clk 0:01:25]} 31. Kh2 {[%clk 0:01:02]}  Qf6 {[%clk 0:01:03]} 32. Rc2 {[%clk 0:00:42]}  Rf7 {[%clk 0:00:55]} 33. Rg2 {[%clk 0:00:36]}  Kf8 {[%clk 0:00:49]} 34. Rxh5 {[%clk 0:00:34]}  Nc7 {[%clk 0:00:46]} 35. Qd3 {[%clk 0:00:27]}  Nxb5 {[%clk 0:00:21]} 36. Qxb5 {[%clk 0:00:27]}  Rd8 {[%clk 0:00:21]} 37. Rf5 {[%clk 0:00:26]}  Qe7 {[%clk 0:00:19]} 38. Rfg5 {[%clk 0:00:20]}  Qf6 {[%clk 0:00:17]} 39. Nc4 {[%clk 0:00:19]}  Rc7 {[%clk 0:00:15]} 40. a4 {[%clk 0:00:18]}  Rdc8 {[%clk 0:00:15]} 41. Rg6 {[%clk 0:00:19]}  Qh4+ {[%clk 0:00:13]} 42. Kg1 {[%clk 0:00:18]}  Bd4+ {[%clk 0:00:12]} 43. Kf1 {[%clk 0:00:18]}  Qh1+ {[%clk 0:00:10]} 44. Rg1 {[%clk 0:00:16]}  Bxg1 {[%clk 0:00:10]} 45. Rxg1 {[%clk 0:00:17]}  Qxf3+ {[%clk 0:00:10]} 46. Ke1 {[%clk 0:00:17]}  Rxc4 {[%clk 0:00:10]} 0-1


[Site "https://www.chess.com"]